bitfinex/quotes_BTCUSD_20251021
["timestamp","ask_amount","ask_price","bid_price","bid_amount"]
[1761054928074,0.34,108520.0,108510.0,0.3030348]
[1761054928289,0.0622987,108530.0,108520.0,0.18429782]
[1761054928503,0.04784341,108530.0,108520.0,0.18429782]
[1761054928713,0.04784341,108530.0,108520.0,0.21476459]
[1761054929135,0.57212425,108530.0,108520.0,0.21476459]
[1761054929350,0.34,108530.0,108520.0,0.21476459]
[1761054929565,0.52428084,108530.0,108520.0,0.21476459]
[1761054930277,0.52428084,108530.0,108520.0,0.03046677]
[1761054930499,0.52428084,108530.0,108520.0,0.21476459]
[1761054930696,0.34,108530.0,108520.0,0.21476459]
[1761054931103,0.52428084,108530.0,108520.0,0.21476459]
[1761054931317,0.34,108530.0,108520.0,0.21476459]
[1761054932646,0.52428084,108530.0,108520.0,0.21476459]
[1761054932858,0.52428084,108530.0,108520.0,0.14902677]
[1761054933313,0.52428084,108530.0,108520.0,0.33332459]
[1761054933749,0.34,108530.0,108520.0,0.33332459]
[1761054933987,0.52428084,108530.0,108520.0,0.03046677]
[1761054934214,0.52428084,108530.0,108520.0,0.33332459]
[1761054934871,0.52428084,108530.0,108520.0,0.33188059]
[1761054935510,0.18429782,108520.0,108510.0,0.18451142]
[1761054935731,3.34,108520.0,108510.0,0.30307142]
[1761054935948,0.34,108520.0,108510.0,0.30307142]
[1761054937264,0.38784341,108530.0,108520.0,0.18429782]
[1761054937468,0.57212425,108530.0,108520.0,0.18429782]
[1761054937677,0.57212425,108530.0,108520.0,0.23303474]
[1761054937953,0.34,108530.0,108520.0,0.23303474]
[1761054938179,0.52428084,108530.0,108520.0,0.23303474]
[1761054939236,0.34,108530.0,108520.0,0.23303474]
[1761054941063,0.52428084,108530.0,108520.0,0.23303474]
[1761054941289,0.52428084,108530.0,108510.0,0.30307142]
[1761054941491,0.34,108530.0,108520.0,0.18429782]
[1761054942271,0.52428084,108530.0,108520.0,0.18429782]
[1761054942890,0.52428084,108530.0,108520.0,0.30281782]
[1761054943102,0.34,108530.0,108520.0,0.30281782]
[1761054943327,0.52428084,108530.0,108520.0,0.16725292]
[1761054943545,0.52428084,108530.0,108520.0,0.18429782]
[1761054943800,0.34,108530.0,108520.0,0.30281782]
[1761054944700,0.34,108530.0,108520.0,0.30151822]
[1761054944903,0.52428084,108530.0,108520.0,0.30927889]
[1761054945328,0.54143921,108530.0,108520.0,0.30927889]
[1761054945542,0.54143921,108530.0,108520.0,0.1756597]
[1761054945771,0.54143921,108530.0,108520.0,0.35995752]
[1761054946376,0.35715837,108530.0,108520.0,0.35995752]
[1761054946855,0.02207613,108540.0,108530.0,0.18428084]
[1761054947079,0.56352144,108540.0,108530.0,0.18428084]
[1761054947298,0.18428084,108530.0,108520.0,0.04937903]
[1761054947521,0.20146229,108530.0,108520.0,0.3212476]
[1761054947734,0.01718145,108530.0,108520.0,0.30281782]
[1761054947953,0.56365123,108540.0,108530.0,0.18428084]
[1761054948165,0.56365072,108540.0,108520.0,0.30281782]
[1761054948396,0.18428084,108530.0,108520.0,0.30281782]
[1761054948624,0.20147836,108530.0,108520.0,0.31627441]
[1761054948842,0.20147836,108530.0,108520.0,0.11852]
[1761054949047,0.20147836,108530.0,108520.0,0.30281782]
[1761054949525,0.34,108520.0,108510.0,0.0002]
[1761054949767,0.54149534,108520.0,108510.0,0.3030348]
[1761054950000,3.58976332,108520.0,108510.0,0.11872]
[1761054950207,3.6259456,108520.0,108510.0,0.0002]
[1761054951141,3.6269456,108520.0,108510.0,0.0002]
[1761054951368,0.35819752,108520.0,108510.0,0.0002]
[1761054951581,0.35819752,108520.0,108510.0,0.3030348]
[1761054952056,0.54249534,108520.0,108510.0,0.11872]
[1761054952469,3.59076332,108520.0,108510.0,0.0002]
[1761054952681,3.6269456,108520.0,108510.0,0.0002]
[1761054952898,3.6269456,108520.0,108510.0,0.00831251]
[1761054953352,3.6259456,108520.0,108510.0,0.00831251]
[1761054954463,3.6269456,108520.0,108510.0,0.00831251]
[1761054954692,3.6269456,108520.0,108510.0,0.00714287]
[1761054956268,3.6269456,108520.0,108510.0,0.19145767]
[1761054956515,3.25076332,108520.0,108510.0,0.00714287]
[1761054956750,3.59076332,108520.0,108510.0,0.00714287]
[1761054957007,3.58976332,108520.0,108510.0,0.00714287]
[1761054959219,3.6259456,108520.0,108510.0,0.00714287]
[1761054959654,3.6269456,108520.0,108510.0,0.00714287]
[1761054960909,3.6259456,108520.0,108510.0,0.00714287]
[1761054961138,3.64140191,108520.0,108510.0,1e-08]
[1761054961371,3.64140191,108520.0,108490.0,0.0004]
[1761054961372,0.18433179,108500.0,108490.0,0.0004]
[1761054961597,3.59456661,108500.0,108490.0,4.94e-05]
[1761054961813,3.60064665,108500.0,108490.0,4.94e-05]
[1761054963200,3.66168436,108500.0,108490.0,4.94e-05]
[1761054963408,3.67714517,108500.0,108490.0,4.94e-05]
[1761054963621,3.65228974,108500.0,108490.0,4.94e-05]
[1761054964091,3.64228975,108500.0,108490.0,4.94e-05]
[1761054964309,3.26510747,108500.0,108490.0,4.94e-05]
[1761054964528,3.60510747,108500.0,108490.0,4.94e-05]
[1761054964749,3.60510747,108500.0,108480.0,0.18436578]
[1761054964976,3.60510747,108500.0,108480.0,0.18451434]
[1761054964977,3.0,108490.0,108480.0,0.18451434]
[1761054965207,0.01719752,108490.0,108480.0,0.22226463]
[1761054965450,0.01714786,108490.0,108480.0,0.22226463]
[1761054965681,3.05132975,108500.0,108490.0,0.18434878]
[1761054965909,3.59280367,108500.0,108480.0,0.22226463]
[1761054966140,0.25080367,108500.0,108490.0,0.18434878]
[1761054966408,0.25080367,108500.0,108480.0,0.18451434]
[1761054966409,0.18434878,108490.0,108480.0,0.18451434]
[1761054966619,0.18434878,108490.0,108480.0,0.2525532]
[1761054966826,0.18434878,108490.0,108480.0,0.23411663]
[1761054967486,3.57366154,108500.0,108480.0,0.00014856]
[1761054967751,0.18434878,108490.0,108480.0,0.01778555]
[1761054967998,0.57366154,108500.0,108480.0,0.20215133]
[1761054968214,3.0,108490.0,108480.0,0.20167133]
[1761054968462,3.0,108490.0,108480.0,0.00014856]
[1761054968463,0.52434878,108490.0,108480.0,0.00014856]
[1761054968916,3.52434878,108490.0,108480.0,0.00014856]
[1761054969382,3.54148869,108490.0,108480.0,0.00014856]
[1761054969644,3.59103084,108490.0,108480.0,0.00014856]
[1761054969863,3.62721312,108490.0,108480.0,0.00014856]
[1761054970568,3.62719959,108490.0,108480.0,1e-08]
[1761054972115,3.62819959,108490.0,108480.0,1e-08]
[1761054972547,3.62719959,108490.0,108480.0,1e-08]
[1761054973001,3.62819959,108490.0,108480.0,1e-08]
[1761054973678,3.62819959,108490.0,108480.0,0.0010548]
[1761054974748,3.62819959,108490.0,108480.0,0.00010739]
[1761054976084,3.28819959,108490.0,108480.0,0.00010739]
[1761054976301,3.28819959,108490.0,108480.0,0.18447317]
[1761054976302,0.06766853,108490.0,108480.0,0.18447317]
[1761054976522,0.25200811,108490.0,108480.0,0.00010739]
[1761054976736,0.53279034,108480.0,108460.0,0.21154355]
[1761054976994,0.53279034,108480.0,108460.0,0.24639289]
[1761054977216,0.18438277,108470.0,108460.0,0.18479977]
[1761054977897,0.34,108470.0,108460.0,0.18479977]
[1761054978116,0.34,108470.0,108460.0,0.20323974]
[1761054978339,0.53278507,108480.0,108470.0,0.18438277]
[1761054979320,0.53278507,108480.0,108460.0,0.18479977]
[1761054979579,0.53278507,108480.0,108470.0,0.18438277]
[1761054981054,0.53278507,108480.0,108460.0,0.34120341]
[1761054981278,0.34,108470.0,108460.0,0.30335977]
[1761054981482,0.52438277,108470.0,108460.0,0.0004]
[1761054982162,0.54154354,108470.0,108460.0,0.0004]
[1761054982366,3.54154354,108470.0,108460.0,0.0004]
[1761054982572,3.54154354,108470.0,108460.0,0.18479977]
[1761054982788,3.54154354,108470.0,108460.0,0.17638048]
[1761054983010,3.52439977,108460.0,108450.0,0.18441403]
[1761054983223,0.52439977,108460.0,108450.0,0.18441403]
[1761054983483,0.52439977,108460.0,108450.0,0.18441678]
[1761054983736,0.52441678,108450.0,108440.0,0.0004]
[1761054983925,0.52441678,108450.0,108440.0,0.18498237]
[1761054984129,0.56255468,108450.0,108440.0,0.18498237]
[1761054984596,0.56255468,108450.0,108440.0,0.00054859]
[1761054984805,0.56255468,108450.0,108440.0,0.18498237]
[1761054985241,0.56255468,108450.0,108440.0,0.00054859]
[1761054985454,0.57971022,108450.0,108440.0,0.18498237]
[1761054985726,0.63095239,108450.0,108440.0,0.00054859]
[1761054986162,3.63095239,108450.0,108440.0,0.00054859]
[1761054987304,3.63095239,108450.0,108430.0,0.0002]
[1761054987305,3.56061606,108440.0,108430.0,0.0002]
[1761054987527,3.62943896,108440.0,108430.0,0.0002]
[1761054987954,3.4088229,108440.0,108430.0,0.0002]
[1761054988174,0.35715554,108440.0,108430.0,0.18465079]
[1761054988377,0.34,108440.0,108430.0,0.18640983]
[1761054988605,0.0391379,108450.0,108440.0,0.18443378]
[1761054988840,0.0391379,108450.0,108440.0,0.35852151]
[1761054989042,0.3781379,108450.0,108440.0,0.30299378]
[1761054989269,0.3781379,108450.0,108440.0,0.30199378]
[1761054989895,0.34,108450.0,108440.0,0.30199378]
[1761054990144,3.22218426,108460.0,108440.0,0.30199378]
[1761054990361,0.23947826,108460.0,108450.0,0.18441678]
[1761054990575,0.5245486,108460.0,108450.0,0.18441678]
[1761054990971,0.3401479,108460.0,108450.0,0.18441678]
[1761054991172,0.0001479,108460.0,108450.0,0.20285845]
[1761054992020,0.0001479,108460.0,108450.0,0.18441678]
[1761054992231,0.0001479,108460.0,108450.0,0.29267746]
[1761054992446,0.0001479,108460.0,108450.0,0.27423579]
[1761054992667,0.0001479,108460.0,108450.0,0.3640548]
[1761054993710,0.0001479,108460.0,108450.0,0.3650548]
[1761054997860,1e-08,108460.0,108450.0,1.13502991]
[1761054998289,1e-08,108460.0,108450.0,0.3650548]
[1761054999403,1e-08,108460.0,108450.0,1.13502991]
[1761055001351,1e-08,108460.0,108450.0,1.18121218]
[1761055001568,1e-08,108460.0,108450.0,1.18021218]
[1761055001792,1e-08,108460.0,108450.0,1.18121218]
[1761055002230,1e-08,108460.0,108450.0,1.52121218]
[1761055002433,1e-08,108460.0,108450.0,1.53121217]
[1761055003356,1e-08,108460.0,108450.0,1.5322674]
[1761055004638,1e-08,108460.0,108450.0,1.5312674]
[1761055004845,1e-08,108460.0,108450.0,1.25903331]
[1761055005082,1e-08,108460.0,108450.0,1.26103331]
[1761055006922,1e-08,108460.0,108450.0,1.2887493]
[1761055008741,1e-08,108460.0,108450.0,1.5069493]
[1761055009771,0.37860416,108520.0,108510.0,0.1843148]
[1761055009979,0.22221369,108520.0,108510.0,0.13691148]
[1761055010202,0.22221369,108520.0,108510.0,0.32122628]
[1761055011062,0.22221369,108520.0,108510.0,0.01843148]
[1761055011284,0.22221369,108520.0,108510.0,0.11848]
[1761055011704,0.22221369,108520.0,108510.0,0.3027948]
[1761055011917,0.03791576,108520.0,108510.0,0.3027948]
[1761055012137,0.56221358,108520.0,108510.0,0.3027948]
[1761055012590,0.56221358,108520.0,108510.0,0.11848]
[1761055012816,0.56221358,108520.0,108510.0,0.14876093]
[1761055013046,0.56221358,108520.0,108510.0,0.33307573]
[1761055013248,0.18428166,108530.0,108510.0,0.33307573]
[1761055013459,0.52429782,108520.0,108510.0,0.33307573]
[1761055014968,0.37665866,108520.0,108510.0,0.33307573]
[1761055015240,0.56095648,108520.0,108510.0,0.33307573]
[1761055015819,0.56095648,108520.0,108510.0,0.14876093]
[1761055016240,0.56095648,108520.0,108510.0,0.03028093]
[1761055016442,0.56095648,108520.0,108510.0,0.33307573]
[1761055016672,0.56095648,108520.0,108510.0,0.33303573]
[1761055016921,0.56095648,108520.0,108510.0,0.21459573]
[1761055017129,0.56095648,108520.0,108510.0,0.33303573]
[1761055017943,0.37665866,108520.0,108510.0,0.33303573]
[1761055018176,0.03665866,108520.0,108510.0,0.33303573]
[1761055018582,3.52428192,108530.0,108520.0,0.18429782]
[1761055018731,0.34,108530.0,108520.0,0.2027276]
[1761055018930,0.52428084,108530.0,108520.0,0.2027276]
[1761055020258,3.61888208,108530.0,108520.0,0.01842978]
[1761055020495,3.61888208,108530.0,108480.0,0.00999999]
[1761055020496,0.52433179,108500.0,108490.0,0.02212]
[1761055020700,3.52433179,108500.0,108490.0,0.11858823]
[1761055020917,3.52433179,108500.0,108490.0,0.30293701]
[1761055021138,3.52433179,108500.0,108490.0,0.11858823]
[1761055021343,3.59058661,108500.0,108490.0,0.00014823]
[1761055023502,3.59058661,108500.0,108490.0,0.18449701]
[1761055023717,0.35713747,108500.0,108490.0,0.20293188]
[1761055023939,0.01713747,108500.0,108490.0,0.20293188]
[1761055024186,0.22246153,108520.0,108490.0,0.20293188]
[1761055024187,0.34,108510.0,108500.0,0.18432861]
[1761055024387,3.20800578,108520.0,108510.0,0.1843148]
[1761055024633,0.5243148,108510.0,108500.0,0.30276861]
[1761055024814,0.54148303,108510.0,108500.0,0.30276861]
[1761055025463,0.01716823,108510.0,108500.0,0.30276861]
[1761055025681,0.22246948,108530.0,108510.0,0.18430595]
[1761055025682,0.18429871,108520.0,108510.0,0.18430595]
[1761055025890,0.21006583,108520.0,108510.0,0.18430595]
[1761055026317,0.55006583,108520.0,108510.0,0.18430595]
[1761055026747,0.36576712,108520.0,108510.0,0.18430595]
[1761055026974,0.02577264,108520.0,108510.0,0.70047845]
[1761055027187,0.03818864,108530.0,108520.0,0.18429782]
[1761055027420,0.38678332,108530.0,108520.0,0.30273782]
[1761055027625,0.36578348,108530.0,108520.0,0.30273782]
[1761055027833,0.55006432,108530.0,108520.0,0.30273782]
[1761055028303,0.36578348,108530.0,108520.0,0.30273782]
[1761055028511,0.36578348,108530.0,108520.0,0.33866055]
[1761055028723,0.39731446,108530.0,108520.0,0.33866055]
[1761055028937,0.5815953,108530.0,108520.0,0.15436273]
[1761055029148,0.52429782,108520.0,108510.0,0.001]
[1761055029387,3.5500813,108520.0,108510.0,0.11944]
[1761055029622,0.18433179,108500.0,108490.0,0.00014823]
[1761055029832,3.59063794,108500.0,108490.0,0.00014823]
[1761055030281,3.62682022,108500.0,108490.0,0.00014823]
[1761055031126,3.62682022,108500.0,108470.0,0.00035168]
[1761055031127,3.56054806,108480.0,108470.0,0.00035168]
[1761055031359,0.34,108440.0,108430.0,0.0002]
[1761055031575,0.34,108440.0,108430.0,0.0003479]
[1761055031576,0.57610114,108440.0,108430.0,0.0003479]
[1761055031800,0.57610114,108440.0,108430.0,1e-08]
[1761055031801,3.59326366,108440.0,108430.0,1e-08]
[1761055032066,3.62944594,108440.0,108430.0,1e-08]
[1761055032286,3.66092413,108440.0,108430.0,1e-08]
[1761055032508,3.65719172,108440.0,108430.0,1e-08]
[1761055033196,3.47275794,108440.0,108430.0,1e-08]
[1761055033428,3.41082988,108440.0,108430.0,1e-08]
[1761055033637,3.59526366,108440.0,108430.0,1e-08]
[1761055033860,3.59326366,108440.0,108430.0,0.1844508]
[1761055034076,3.40882988,108440.0,108430.0,0.1844508]
[1761055034288,3.59417157,108440.0,108430.0,1e-08]
[1761055034505,3.57710114,108440.0,108430.0,1e-08]
[1761055034956,3.61328342,108440.0,108430.0,1e-08]
[1761055035826,3.63035466,108440.0,108430.0,1e-08]
[1761055036041,3.61328342,108440.0,108430.0,1e-08]
[1761055036246,3.63034885,108440.0,108430.0,1e-08]
[1761055036650,3.57710114,108440.0,108430.0,1e-08]
[1761055036860,3.63035014,108440.0,108430.0,1e-08]
[1761055037084,3.63035014,108440.0,108430.0,0.00140731]
[1761055037922,3.6448176,108440.0,108430.0,0.00140731]
[1761055038763,3.63035014,108440.0,108430.0,0.00140731]
[1761055039407,3.59416786,108440.0,108430.0,0.00140731]
[1761055039861,3.59416786,108440.0,108430.0,0.1858581]
[1761055039862,3.05366736,108440.0,108430.0,0.1858581]
[1761055040071,0.23810114,108440.0,108430.0,0.1858581]
[1761055040299,0.57810114,108440.0,108430.0,0.1858581]
[1761055040511,3.57810114,108440.0,108430.0,0.00140731]
[1761055040717,3.57710114,108440.0,108430.0,0.00140731]
[1761055040969,3.61328342,108440.0,108430.0,0.00140731]
[1761055041183,3.6302977,108440.0,108430.0,0.00140731]
[1761055041611,3.63253837,108440.0,108430.0,0.00140731]
[1761055041824,3.66862059,108440.0,108430.0,0.00140731]
[1761055042041,3.67062059,108440.0,108430.0,1e-08]
[1761055042247,3.64476516,108440.0,108430.0,1e-08]
[1761055042459,3.65846504,108440.0,108430.0,1e-08]
[1761055042675,3.57063306,108430.0,108420.0,0.0002]
[1761055042894,3.63973997,108430.0,108420.0,0.00068736]
[1761055043099,3.63973997,108430.0,108420.0,0.00103928]
[1761055043744,3.62973998,108430.0,108420.0,0.00103928]
[1761055045451,3.63073998,108430.0,108420.0,0.00103928]
[1761055045655,3.6137257,108430.0,108420.0,0.00103928]
[1761055045866,3.57854342,108430.0,108420.0,0.18550709]
[1761055046080,3.23754342,108430.0,108420.0,0.18550709]
[1761055046282,0.23654342,108430.0,108420.0,0.00103928]
[1761055046485,0.05209263,108430.0,108420.0,0.18550709]
[1761055046935,3.0,108440.0,108430.0,0.18445079]
[1761055047144,0.28999744,108440.0,108420.0,0.19473048]
[1761055047424,0.18445079,108430.0,108420.0,0.00103928]
[1761055047622,0.57610114,108440.0,108420.0,0.20395387]
[1761055047829,0.18445079,108430.0,108420.0,0.18550709]
[1761055048250,0.57610114,108440.0,108430.0,0.18445079]
[1761055048466,3.0,108430.0,108420.0,0.18550709]
[1761055048924,0.18445079,108430.0,108420.0,0.18550709]
[1761055049477,3.0,108430.0,108420.0,0.18550709]
[1761055049693,0.34,108430.0,108420.0,0.68324811]
[1761055049903,0.34,108430.0,108420.0,0.18550709]
[1761055050769,0.34,108430.0,108420.0,0.23628062]
[1761055050971,0.34,108430.0,108420.0,0.18650709]
[1761055053330,0.52445079,108430.0,108420.0,0.18650709]
[1761055053536,0.52445079,108430.0,108420.0,0.30502709]
[1761055053748,0.57654342,108430.0,108420.0,0.00203928]
[1761055054008,0.39209263,108430.0,108420.0,0.18650709]
[1761055054223,0.34,108430.0,108420.0,0.34289997]
[1761055054435,0.34,108430.0,108420.0,0.30502709]
[1761055055039,0.34,108430.0,108420.0,0.30402709]
[1761055055835,0.34,108430.0,108420.0,0.80176811]
[1761055056049,0.34,108430.0,108420.0,0.30402709]
[1761055056379,0.34,108430.0,108420.0,0.30502709]
[1761055057395,3.5336382,108450.0,108440.0,0.18443378]
[1761055057606,3.5336382,108450.0,108430.0,0.18443545]
[1761055057607,3.18443378,108440.0,108430.0,0.18443545]
[1761055057815,0.18443378,108440.0,108430.0,0.20288052]
[1761055058249,0.20154039,108440.0,108430.0,0.20288052]
[1761055058457,0.01710661,108440.0,108430.0,0.20288052]
[1761055059301,0.01710661,108440.0,108430.0,0.18443545]
[1761055059537,0.01710661,108440.0,108430.0,0.25449362]
[1761055059738,0.2080883,108460.0,108430.0,0.23604855]
[1761055059953,0.34,108450.0,108440.0,0.32134413]
[1761055060184,0.35714036,108450.0,108440.0,0.30290076]
[1761055060394,0.54155714,108450.0,108440.0,0.30291378]
[1761055060609,0.35714036,108450.0,108440.0,0.30291378]
[1761055061261,0.54155714,108450.0,108440.0,0.30291378]
[1761055062136,0.35714036,108450.0,108440.0,0.30291378]
[1761055062350,0.35714036,108450.0,108440.0,0.30391378]
[1761055063017,0.34,108450.0,108440.0,0.30391378]
[1761055063240,0.19882911,108480.0,108450.0,0.00922083]
[1761055063463,0.03162036,108480.0,108470.0,0.18438277]
[1761055063668,0.01715703,108480.0,108470.0,0.18438277]
[1761055064131,0.35715703,108480.0,108470.0,0.18438277]
[1761055064353,0.01715703,108480.0,108470.0,0.74928831]
[1761055064567,0.01715703,108480.0,108470.0,0.23310902]
[1761055064790,0.00014804,108480.0,108470.0,0.23310902]
[1761055064999,0.00114804,108480.0,108470.0,0.23310902]
[1761055065444,0.18438358,108470.0,108450.0,0.2834268]
[1761055065663,0.18438358,108470.0,108460.0,0.11848]
[1761055065875,0.18438277,108470.0,108460.0,0.30287977]
[1761055066116,0.34,108470.0,108460.0,0.30287977]
[1761055066331,0.00014804,108480.0,108470.0,0.18438277]
[1761055066587,0.00014804,108480.0,108470.0,0.25254729]
[1761055066798,0.01460645,108480.0,108470.0,0.23310902]
[1761055067012,0.00014804,108480.0,108470.0,0.23310902]
[1761055067234,0.00014804,108480.0,108470.0,0.04872625]
[1761055067457,0.18451382,108480.0,108470.0,0.23310902]
[1761055067700,0.00014804,108480.0,108470.0,0.23310902]
[1761055067935,0.00014804,108480.0,108470.0,0.35258902]
[1761055068157,0.18451382,108480.0,108470.0,0.35258902]
[1761055068791,0.00014804,108480.0,108470.0,0.35258902]
[1761055069251,0.18451382,108480.0,108470.0,0.35258902]
[1761055069464,0.00014804,108480.0,108470.0,0.35258902]
[1761055070540,0.01727178,108480.0,108470.0,0.35258902]
[1761055070781,0.01727178,108480.0,108470.0,0.30386277]
[1761055072227,0.01726932,108480.0,108470.0,0.30386277]
[1761055073272,0.00014804,108480.0,108470.0,0.30386277]
[1761055074157,0.00014804,108480.0,108470.0,0.39368178]
[1761055074373,0.00014804,108480.0,108470.0,0.45148993]
[1761055080599,0.00014804,108480.0,108470.0,1.22189088]
[1761055081064,0.1,108500.0,108470.0,1.23111001]
[1761055081294,0.1,108500.0,108490.0,0.18434878]
[1761055081523,0.1,108500.0,108490.0,0.39260779]
[1761055081742,0.1,108500.0,108490.0,0.4824268]
[1761055083252,0.1,108500.0,108490.0,0.4834268]
[1761055083707,0.62433179,108500.0,108490.0,0.002]
[1761055084224,0.64145996,108500.0,108490.0,0.18634878]
[1761055084483,0.69057731,108500.0,108490.0,0.002]
[1761055084685,3.69057731,108500.0,108490.0,0.001]
[1761055085115,0.34,108490.0,108480.0,0.30276568]
[1761055085326,0.35712817,108490.0,108480.0,0.35240226]
[1761055085789,0.1,108500.0,108490.0,0.18434878]
[1761055086003,0.101,108500.0,108490.0,0.20278365]
[1761055086438,0.1,108500.0,108490.0,0.20278365]
[1761055086648,0.1,108500.0,108490.0,0.29260266]
[1761055086859,0.101,108500.0,108490.0,0.3639868]
[1761055087297,0.1,108500.0,108490.0,0.3639868]
[1761055087509,0.1,108500.0,108490.0,1.13438775]
[1761055087757,1e-08,108500.0,108490.0,1.13538775]
[1761055088610,1e-08,108500.0,108490.0,0.3639868]
[1761055088825,0.1843318,108500.0,108490.0,0.3649868]
[1761055089006,1e-08,108500.0,108490.0,0.4833868]
[1761055089758,1e-08,108500.0,108490.0,0.4823868]
[1761055089970,1e-08,108500.0,108490.0,0.4833868]
[1761055090183,1e-08,108500.0,108490.0,0.4843868]
[1761055090393,1e-08,108500.0,108490.0,0.4833868]
[1761055090610,1e-08,108500.0,108490.0,0.4843868]
[1761055090821,1e-08,108500.0,108490.0,1.25478775]
[1761055091734,1e-08,108500.0,108490.0,0.4843868]
[1761055092372,1e-08,108500.0,108490.0,0.39456779]
[1761055093445,1e-08,108500.0,108490.0,0.39256779]
[1761055093683,0.01716941,108500.0,108490.0,0.39256779]
[1761055093911,0.01716941,108500.0,108490.0,0.39356779]
[1761055094139,0.5243318,108500.0,108490.0,0.09081901]
[1761055094390,3.59061855,108500.0,108490.0,0.001]
[1761055094594,3.62680083,108500.0,108490.0,0.001]
[1761055095916,3.62780083,108500.0,108490.0,0.001]
[1761055096145,3.62780083,108500.0,108460.0,0.19361651]
[1761055096146,0.18438277,108470.0,108460.0,0.19361651]
[1761055096359,0.20155217,108470.0,108460.0,0.24432698]
[1761055096571,0.0171694,108470.0,108460.0,0.24432698]
[1761055097468,0.05548477,108470.0,108460.0,0.24532698]
[1761055097680,0.0171694,108470.0,108460.0,0.24532698]
[1761055097902,0.34,108490.0,108480.0,0.18436578]
[1761055098149,0.34,108490.0,108480.0,0.23967569]
[1761055098150,0.3571697,108490.0,108480.0,0.23967569]
[1761055098353,0.3571697,108490.0,108480.0,0.22123912]
[1761055098566,0.39549072,108490.0,108480.0,0.22123912]
[1761055098834,0.05549072,108490.0,108480.0,0.22123912]
[1761055099460,0.39549072,108490.0,108480.0,0.22123912]
[1761055100532,0.39549072,108490.0,108480.0,0.22223912]
[1761055103014,0.05549072,108490.0,108480.0,0.22223912]
[1761055103391,0.0171697,108490.0,108480.0,0.22223912]
[1761055103589,0.03798343,108500.0,108490.0,0.18434878]
[1761055103790,0.20150639,108500.0,108490.0,0.37082434]
[1761055104014,0.20150639,108500.0,108490.0,0.16804069]
[1761055104229,0.0171746,108500.0,108490.0,0.35238947]
[1761055104801,0.05533206,108500.0,108490.0,0.35238947]
[1761055105047,0.20150639,108500.0,108490.0,0.35238947]
[1761055105410,0.0171746,108500.0,108490.0,0.35238947]
[1761055106374,0.05445453,108500.0,108490.0,0.35238947]
[1761055106854,0.0171746,108500.0,108490.0,1.21260943]
[1761055107063,0.0171746,108500.0,108490.0,0.44220848]
[1761055107064,1e-08,108500.0,108490.0,0.44220848]
[1761055107681,1e-08,108500.0,108490.0,0.23398947]
[1761055107898,0.1843318,108500.0,108490.0,0.35238947]
[1761055108118,0.5243318,108500.0,108490.0,0.04964069]
[1761055108328,0.52434878,108490.0,108480.0,0.33963912]
[1761055108533,0.52434878,108490.0,108480.0,0.15527334]
[1761055108737,0.54151834,108490.0,108480.0,0.15527334]
[1761055108946,0.52434878,108490.0,108480.0,0.33963912]
[1761055109167,0.54151806,108490.0,108480.0,0.30276578]
[1761055109407,0.54151806,108490.0,108480.0,0.1184]
[1761055109607,0.54151806,108490.0,108470.0,0.30274224]
[1761055109810,0.34,108480.0,108470.0,0.30274224]
[1761055110030,0.34,108480.0,108470.0,0.35744916]
[1761055111671,0.34,108480.0,108470.0,0.35844916]
[1761055112696,0.01445722,108490.0,108470.0,0.35944916]
[1761055112902,0.01445722,108490.0,108480.0,0.95476673]
[1761055113109,0.01445722,108490.0,108480.0,1.04458574]
[1761055113360,0.01445722,108490.0,108480.0,1.13440475]
[1761055113787,1e-08,108500.0,108490.0,0.18434878]
[1761055114023,1e-08,108500.0,108490.0,1.18136361]
[1761055114239,1e-08,108500.0,108490.0,1.63893002]
[1761055114460,1e-08,108500.0,108490.0,1.64893001]
[1761055115337,1e-08,108500.0,108490.0,1.64993001]
[1761055115544,1e-08,108500.0,108490.0,1.64893001]
[1761055115768,1e-08,108500.0,108490.0,1.65293001]
[1761055116434,1e-08,108500.0,108490.0,0.88252906]
[1761055116659,1e-08,108500.0,108490.0,1.59674775]
[1761055116872,1e-08,108500.0,108490.0,1.13838775]
[1761055117098,1e-08,108500.0,108490.0,1.25674775]
[1761055117310,1e-08,108500.0,108490.0,1.13838775]
[1761055117518,1e-08,108500.0,108490.0,1.13638775]
[1761055117769,1e-08,108500.0,108490.0,1.25274775]
[1761055117971,1e-08,108500.0,108490.0,1.25574775]
[1761055118616,1e-08,108500.0,108490.0,0.4853468]
[1761055118826,1e-08,108500.0,108490.0,1.64193002]
[1761055119047,1e-08,108500.0,108490.0,1.65193001]
[1761055119258,1e-08,108500.0,108490.0,1.64193002]
[1761055119478,1e-08,108500.0,108490.0,1.65193001]
[1761055120112,1e-08,108500.0,108490.0,1.64193002]
[1761055120829,1e-08,108500.0,108490.0,1.65193001]
[1761055121457,1e-08,108500.0,108490.0,0.88152906]
[1761055121681,1e-08,108500.0,108490.0,1.65193001]
[1761055121880,1e-08,108500.0,108490.0,1.64993001]
[1761055122106,3.0,108560.0,108550.0,0.18424689]
[1761055122320,0.00857266,108560.0,108550.0,0.35787966]
[1761055122534,0.00857266,108560.0,108550.0,0.33945498]
[1761055122747,0.0004,108590.0,108580.0,0.18419598]
[1761055122955,0.19315392,108590.0,108580.0,0.22103536]
[1761055123180,0.23280055,108590.0,108580.0,0.03683938]
[1761055123399,3.0,108580.0,108570.0,0.31510901]
[1761055123604,3.0,108580.0,108570.0,0.30253158]
[1761055124019,0.18419598,108580.0,108570.0,0.30253158]
[1761055124240,0.18419598,108580.0,108570.0,0.11832]
[1761055124449,0.52419598,108580.0,108570.0,0.30253295]
[1761055124654,0.34,108580.0,108570.0,0.35212942]
[1761055125278,0.52419598,108580.0,108570.0,0.35212942]
[1761055125912,0.34,108580.0,108570.0,0.35212942]
[1761055126333,0.35444762,108580.0,108570.0,0.35212942]
[1761055126552,0.5386436,108580.0,108570.0,0.35212942]
[1761055126764,0.35444762,108580.0,108570.0,0.35212942]
[1761055128531,0.01444762,108580.0,108570.0,0.93906841]
[1761055128948,0.01550119,108580.0,108570.0,0.93906841]
[1761055129181,0.01550119,108580.0,108570.0,0.44194843]
[1761055130029,0.01550119,108580.0,108570.0,0.93906841]
[1761055130478,0.01550119,108580.0,108570.0,0.44394843]
[1761055130679,0.01550119,108580.0,108570.0,0.94106841]
[1761055131221,0.01550119,108580.0,108570.0,0.44394843]
[1761055131433,0.19969717,108580.0,108570.0,0.44394843]
[1761055131645,0.58541889,108580.0,108570.0,0.002]
[1761055131867,0.58541889,108580.0,108570.0,0.18621295]
[1761055132081,0.58541889,108580.0,108570.0,0.002]
[1761055132513,0.58541889,108580.0,108570.0,0.18621295]
[1761055132724,0.35550119,108580.0,108570.0,0.23600542]
[1761055132936,0.35550119,108580.0,108570.0,0.23500542]
[1761055133776,0.35550119,108580.0,108570.0,0.23400542]